[Event "*** Titled Tuesday Blitz"]
[Site "Chess.com"]
[Date "2020.03.03"]
[Round "1"]
[White "maestroza"]
[Black "Sanan_Sjugirov"]
[Result "0-1"]
[WhiteElo "2465"]
[BlackElo "2831"]
[TimeControl "180+1"]
[EndTime "9:07:23 PST"]
[Termination "Sanan_Sjugirov won on time"]

1. d4 {[%clk 0:02:59.5]} 1... Nf6 {[%clk 0:02:58.4]} 2. Nf3 {[%clk 0:02:59.7]}
2... d5 {[%clk 0:02:56.6]} 3. e3 {[%clk 0:02:57.2]} 3... c5 {[%clk 0:02:45.2]}
4. dxc5 {[%clk 0:02:42.7]} 4... e6 {[%clk 0:02:40.3]} 5. c4 {[%clk 0:02:40.6]}
5... Bxc5 {[%clk 0:02:32.8]} 6. Nc3 {[%clk 0:02:40.1]} 6... O-O {[%clk
0:02:28.5]} 7. Be2 {[%clk 0:02:39.9]} 7... Nc6 {[%clk 0:02:27.7]} 8. O-O {[%clk
0:02:39.6]} 8... dxc4 {[%clk 0:02:22.8]} 9. Bxc4 {[%clk 0:02:36.4]} 9... a6
{[%clk 0:02:22.1]} 10. Qe2 {[%clk 0:02:20.2]} 10... b5 {[%clk 0:02:20.9]} 11.
Bd3 {[%clk 0:02:20.4]} 11... Bb7 {[%clk 0:02:20]} 12. b3 {[%clk 0:02:15.3]}
12... Nb4 {[%clk 0:01:59]} 13. Bb1 {[%clk 0:02:03.8]} 13... Qc7 {[%clk
0:01:54.7]} 14. Bb2 {[%clk 0:01:56.5]} 14... Bd6 {[%clk 0:01:54.3]} 15. h3
{[%clk 0:01:48]} 15... Rac8 {[%clk 0:01:40]} 16. Rc1 {[%clk 0:01:27.8]} 16...
Qe7 {[%clk 0:01:20.5]} 17. a3 {[%clk 0:01:04.1]} 17... Nc6 {[%clk 0:01:20.4]}
18. Ne4 {[%clk 0:00:57]} 18... Nxe4 {[%clk 0:01:20.2]} 19. Bxe4 {[%clk
0:00:57.9]} 19... f5 {[%clk 0:01:19.6]} 20. Bd3 {[%clk 0:00:44]} 20... e5 {[%clk
0:00:35]} 21. e4 {[%clk 0:00:44]} 21... Rce8 {[%clk 0:00:26.5]} 22. Rc2 {[%clk
0:00:31.7]} 22... Na5 {[%clk 0:00:18.3]} 23. Nd2 {[%clk 0:00:24.2]} 23... g6
{[%clk 0:00:09.8]} 24. Rac1 {[%clk 0:00:23.8]} 24... Qd7 {[%clk 0:00:08.1]} 25.
b4 {[%clk 0:00:20.1]} 25... Nc6 {[%clk 0:00:08.1]} 26. Nb3 {[%clk 0:00:19.9]}
26... Ba8 {[%clk 0:00:05.2]} 27. Nc5 {[%clk 0:00:14.5]} 27... Qa7 {[%clk
0:00:04.3]} 28. Rd2 {[%clk 0:00:11.9]} 28... Nd4 {[%clk 0:00:04.5]} 29. Qd1
{[%clk 0:00:08.6]} 29... Bxc5 {[%clk 0:00:04.8]} 30. bxc5 {[%clk 0:00:05.1]}
30... fxe4 {[%clk 0:00:05.1]} 31. Bb1 {[%clk 0:00:05.2]} 31... Nf5 {[%clk
0:00:04.3]} 32. Rd7 {[%clk 0:00:03.3]} 32... Qb8 {[%clk 0:00:04.1]} 33. Ba2+
{[%clk 0:00:02.9]} 33... Kh8 {[%clk 0:00:04.3]} 0-1

[Event "*** Titled Tuesday Blitz"]
[Site "Chess.com"]
[Date "2020.03.03"]
[Round "1"]
[White "KacperPolOK"]
[Black "Tjktiger"]
[Result "0-1"]
[WhiteElo "2424"]
[BlackElo "2782"]
[TimeControl "180+1"]
[EndTime "9:07:27 PST"]
[Termination "Tjktiger won by resignation"]

1. e4 {[%clk 0:03:00.6]} 1... c5 {[%clk 0:02:56.7]} 2. Nc3 {[%clk 0:02:57]} 2...
Nc6 {[%clk 0:02:56.1]} 3. Bb5 {[%clk 0:02:55.9]} 3... Nd4 {[%clk 0:02:55.8]} 4.
Bc4 {[%clk 0:02:54.6]} 4... a6 {[%clk 0:02:56.1]} 5. d3 {[%clk 0:02:52.4]} 5...
b5 {[%clk 0:02:55.5]} 6. Bb3 {[%clk 0:02:51.9]} 6... e6 {[%clk 0:02:54.8]} 7.
Nf3 {[%clk 0:02:50.3]} 7... Nc6 {[%clk 0:02:49.4]} 8. O-O {[%clk 0:02:48.7]}
8... Nge7 {[%clk 0:02:48.9]} 9. a4 {[%clk 0:02:30.8]} 9... b4 {[%clk 0:02:47]}
10. Ne2 {[%clk 0:02:30.1]} 10... Ng6 {[%clk 0:02:46.6]} 11. d4 {[%clk
0:02:20.2]} 11... cxd4 {[%clk 0:02:44.3]} 12. Nexd4 {[%clk 0:02:19.7]} 12... Bb7
{[%clk 0:02:44.2]} 13. Be3 {[%clk 0:02:14.3]} 13... Qc7 {[%clk 0:02:42.8]} 14.
Nxc6 {[%clk 0:02:11.9]} 14... Bxc6 {[%clk 0:02:39.9]} 15. Qd3 {[%clk 0:02:12.2]}
15... Be7 {[%clk 0:02:26.4]} 16. Rfd1 {[%clk 0:02:00.2]} 16... O-O {[%clk
0:02:25.7]} 17. Nd4 {[%clk 0:01:55.9]} 17... Bb7 {[%clk 0:02:05.9]} 18. f3
{[%clk 0:01:46.9]} 18... Rfd8 {[%clk 0:01:57.7]} 19. Rd2 {[%clk 0:01:42.5]}
19... Rac8 {[%clk 0:01:40.3]} 20. Rad1 {[%clk 0:01:41.6]} 20... Ne5 {[%clk
0:01:40.4]} 21. Qe2 {[%clk 0:01:38.7]} 21... h6 {[%clk 0:01:28]} 22. Qf2 {[%clk
0:01:23.4]} 22... Nc4 {[%clk 0:01:21.7]} 23. Bxc4 {[%clk 0:01:22.5]} 23... Qxc4
{[%clk 0:01:22.6]} 24. Nb3 {[%clk 0:01:15.1]} 24... Bc6 {[%clk 0:00:38.7]} 25.
Na5 {[%clk 0:01:05.3]} 25... Qa2 {[%clk 0:00:38.9]} 26. Bb6 {[%clk 0:01:05]}
26... Re8 {[%clk 0:00:38.5]} 27. Nxc6 {[%clk 0:01:05.2]} 27... dxc6 {[%clk
0:00:38.6]} 28. b3 {[%clk 0:01:04]} 28... c5 {[%clk 0:00:38.5]} 29. Rd7 {[%clk
0:01:01]} 29... c4 {[%clk 0:00:37.6]} 30. a5 {[%clk 0:00:25.7]} 30... cxb3
{[%clk 0:00:36.7]} 31. cxb3 {[%clk 0:00:24.7]} 31... Qxb3 {[%clk 0:00:37.6]} 32.
h3 {[%clk 0:00:23.4]} 32... Qa4 {[%clk 0:00:34.6]} 33. Qd2 {[%clk 0:00:19.8]}
33... b3 {[%clk 0:00:32.3]} 34. Rb1 {[%clk 0:00:19.4]} 34... Bb4 {[%clk
0:00:30.3]} 35. Qd3 {[%clk 0:00:18.1]} 35... Rc3 {[%clk 0:00:16.4]} 36. Qxa6
{[%clk 0:00:16.4]} 36... Qxd7 {[%clk 0:00:14.8]} 37. Qe2 {[%clk 0:00:13.8]}
37... Qd3 {[%clk 0:00:14.4]} 38. Qxd3 {[%clk 0:00:11.7]} 38... Rxd3 {[%clk
0:00:14.3]} 39. a6 {[%clk 0:00:12.6]} 39... Ra8 {[%clk 0:00:14.3]} 40. a7 {[%clk
0:00:12]} 40... Rc3 {[%clk 0:00:14.3]} 41. Kf2 {[%clk 0:00:10.8]} 41... Bc5+
{[%clk 0:00:14.5]} 42. Bxc5 {[%clk 0:00:11.3]} 42... Rxc5 {[%clk 0:00:15.4]} 43.
Rxb3 {[%clk 0:00:12]} 43... Rxa7 {[%clk 0:00:15.8]} 0-1

[Event "*** Titled Tuesday Blitz"]
[Site "Chess.com"]
[Date "2020.03.03"]
[Round "1"]
[White "GMKrikor"]
[Black "Vyacheslav_N"]
[Result "1-0"]
[WhiteElo "2848"]
[BlackElo "2466"]
[TimeControl "180+1"]
[EndTime "9:07:30 PST"]
[Termination "GMKrikor won on time"]

1. Nf3 {[%clk 0:03:00.9]} 1... f5 {[%clk 0:02:58.6]} 2. c4 {[%clk 0:02:56.2]}
2... Nf6 {[%clk 0:02:54.5]} 3. g3 {[%clk 0:02:53.9]} 3... g6 {[%clk 0:02:46.9]}
4. Bg2 {[%clk 0:02:54.3]} 4... Bg7 {[%clk 0:02:47.8]} 5. O-O {[%clk 0:02:54.5]}
5... O-O {[%clk 0:02:48.7]} 6. d3 {[%clk 0:02:54.8]} 6... d6 {[%clk 0:02:49]} 7.
Nc3 {[%clk 0:02:51]} 7... e5 {[%clk 0:02:49.5]} 8. Rb1 {[%clk 0:02:47.8]} 8...
Nc6 {[%clk 0:02:48.9]} 9. b4 {[%clk 0:02:47.5]} 9... h6 {[%clk 0:02:46.4]} 10.
b5 {[%clk 0:02:47.7]} 10... Ne7 {[%clk 0:02:46.9]} 11. a4 {[%clk 0:02:48.4]}
11... c6 {[%clk 0:02:47]} 12. Ba3 {[%clk 0:02:38.1]} 12... Be6 {[%clk
0:02:46.5]} 13. bxc6 {[%clk 0:02:28.6]} 13... bxc6 {[%clk 0:02:47.4]} 14. Rb7
{[%clk 0:02:28.7]} 14... Bc8 {[%clk 0:02:45.3]} 15. Rb3 {[%clk 0:02:25.9]} 15...
Be6 {[%clk 0:02:33.8]} 16. Qb1 {[%clk 0:02:21.3]} 16... Ne8 {[%clk 0:02:22.5]}
17. Nd2 {[%clk 0:02:06]} 17... Rf7 {[%clk 0:02:10.3]} 18. Rb7 {[%clk 0:02:05.5]}
18... d5 {[%clk 0:02:10.6]} 19. cxd5 {[%clk 0:02:01.5]} 19... Nxd5 {[%clk
0:02:09.7]} 20. Rxf7 {[%clk 0:01:48.5]} 20... Bxf7 {[%clk 0:01:54.3]} 21. Rc1
{[%clk 0:01:41.9]} 21... Rb8 {[%clk 0:01:53.2]} 22. Qc2 {[%clk 0:01:38.9]} 22...
e4 {[%clk 0:01:51.1]} 23. Nd1 {[%clk 0:01:28.8]} 23... exd3 {[%clk 0:01:43.2]}
24. Qxd3 {[%clk 0:01:28.2]} 24... Qd7 {[%clk 0:01:38.2]} 25. Ne3 {[%clk
0:01:22.2]} 25... Nef6 {[%clk 0:01:28.3]} 26. Nec4 {[%clk 0:01:18.5]} 26... Qe6
{[%clk 0:01:23.1]} 27. Nd6 {[%clk 0:01:15.1]} 27... Rc8 {[%clk 0:01:19]} 28.
Nxc8 {[%clk 0:01:14.7]} 28... Qxc8 {[%clk 0:01:17.8]} 29. Nc4 {[%clk 0:01:15.2]}
29... Qe6 {[%clk 0:01:16.8]} 30. Nd6 {[%clk 0:01:14.8]} 30... f4 {[%clk
0:01:13.5]} 31. Rxc6 {[%clk 0:01:00.4]} 31... fxg3 {[%clk 0:00:26.5]} 32. hxg3
{[%clk 0:00:59.9]} 32... Ne7 {[%clk 0:00:25.2]} 33. Rc1 {[%clk 0:00:50.7]} 33...
Kh7 {[%clk 0:00:02.9]} 34. Nxf7 {[%clk 0:00:49]} 34... Qxf7 {[%clk 0:00:03.8]}
35. Rc7 {[%clk 0:00:45.2]} 35... Nfg8 {[%clk 0:00:04.3]} 36. Rxa7 {[%clk
0:00:42.1]} 36... Qf6 {[%clk 0:00:03]} 37. Ra6 {[%clk 0:00:28]} 37... Qa1+
{[%clk 0:00:02.5]} 38. Kh2 {[%clk 0:00:28.5]} 38... Nf5 {[%clk 0:00:03.3]} 39.
Be4 {[%clk 0:00:25.5]} 39... Qe5 {[%clk 0:00:03]} 40. Bxf5 {[%clk 0:00:23.5]}
40... gxf5 {[%clk 0:00:03.6]} 41. Qd6 {[%clk 0:00:21.1]} 41... Qxe2 {[%clk
0:00:03]} 42. Qg6+ {[%clk 0:00:21]} 42... Kh8 {[%clk 0:00:03.1]} 43. Bc5 {[%clk
0:00:20.1]} 1-0

[Event "*** Titled Tuesday Blitz"]
[Site "Chess.com"]
[Date "2020.03.03"]
[Round "1"]
[White "vovachesss"]
[Black "FearNoEvil12"]
[Result "1-0"]
[WhiteElo "2563"]
[BlackElo "1960"]
[TimeControl "180+1"]
[EndTime "9:07:34 PST"]
[Termination "vovachesss won on time"]

1. e4 {[%clk 0:02:51.4]} 1... a6 {[%clk 0:02:58.6]} 2. d4 {[%clk 0:02:51]} 2...
b5 {[%clk 0:02:58.9]} 3. Nf3 {[%clk 0:02:50.5]} 3... Bb7 {[%clk 0:02:59.3]} 4.
Bd3 {[%clk 0:02:51.2]} 4... e6 {[%clk 0:02:59.3]} 5. Qe2 {[%clk 0:02:50.9]} 5...
Nf6 {[%clk 0:02:59.7]} 6. O-O {[%clk 0:02:50.6]} 6... d6 {[%clk 0:03:00]} 7. c3
{[%clk 0:02:48.8]} 7... Nbd7 {[%clk 0:02:59.5]} 8. Bf4 {[%clk 0:02:48.9]} 8...
h6 {[%clk 0:02:58.8]} 9. Bg3 {[%clk 0:02:47.9]} 9... g5 {[%clk 0:02:58.2]} 10.
e5 {[%clk 0:02:46.8]} 10... Nd5 {[%clk 0:02:56]} 11. exd6 {[%clk 0:02:44.7]}
11... cxd6 {[%clk 0:02:54.7]} 12. Re1 {[%clk 0:02:38.9]} 12... h5 {[%clk
0:02:53.8]} 13. h4 {[%clk 0:02:33.6]} 13... gxh4 {[%clk 0:02:52.5]} 14. Bg6
{[%clk 0:01:47.2]} 14... Be7 {[%clk 0:02:53.4]} 15. Qxe6 {[%clk 0:01:27.2]}
15... fxg6 {[%clk 0:02:43.8]} 16. Bxh4 {[%clk 0:01:04.9]} 16... Nf8 {[%clk
0:02:40.5]} 17. Qe4 {[%clk 0:00:59.1]} 17... Qd7 {[%clk 0:02:32]} 18. Nbd2
{[%clk 0:00:53.6]} 18... Rh7 {[%clk 0:02:05.7]} 19. c4 {[%clk 0:00:52.9]} 19...
bxc4 {[%clk 0:02:01.9]} 20. Nxc4 {[%clk 0:00:53.8]} 20... O-O-O {[%clk
0:01:51.5]} 21. Bg3 {[%clk 0:00:39.1]} 21... Kb8 {[%clk 0:01:30.9]} 22. Na5
{[%clk 0:00:37.7]} 22... Bf6 {[%clk 0:01:21.8]} 23. Rac1 {[%clk 0:00:31.7]}
23... Qb5 {[%clk 0:01:15]} 24. Rc5 {[%clk 0:00:24.7]} 24... Qb6 {[%clk
0:00:56.7]} 25. Nxb7 {[%clk 0:00:23.5]} 25... Rxb7 {[%clk 0:00:47.5]} 26. Qxd5
{[%clk 0:00:18.6]} 26... Ka7 {[%clk 0:00:40.3]} 27. Rc6 {[%clk 0:00:18.8]} 27...
Qb5 {[%clk 0:00:34.3]} 28. Qxb5 {[%clk 0:00:17.8]} 28... Rxb5 {[%clk 0:00:32.3]}
29. Rxd6 {[%clk 0:00:18.7]} 29... Rxd6 {[%clk 0:00:29.8]} 30. Bxd6 {[%clk
0:00:19.6]} 30... Nd7 {[%clk 0:00:28.8]} 31. Re6 {[%clk 0:00:19.2]} 31... Rxb2
{[%clk 0:00:23.3]} 32. Bc5+ {[%clk 0:00:19.7]} 32... Kb7 {[%clk 0:00:18.6]} 33.
Rd6 {[%clk 0:00:19]} 33... Kc7 {[%clk 0:00:16.5]} 34. Rxa6 {[%clk 0:00:19.2]}
34... Nxc5 {[%clk 0:00:13.1]} 35. dxc5 {[%clk 0:00:20.1]} 35... Rb1+ {[%clk
0:00:11.4]} 36. Kh2 {[%clk 0:00:20]} 36... Be7 {[%clk 0:00:08.6]} 37. Rxg6
{[%clk 0:00:20.1]} 37... Bxc5 {[%clk 0:00:07.6]} 38. Kg3 {[%clk 0:00:18.8]}
38... Bd6+ {[%clk 0:00:06.8]} 39. Kh4 {[%clk 0:00:17.7]} 39... Rb2 {[%clk
0:00:07.2]} 40. Kxh5 {[%clk 0:00:17.1]} 40... Rxf2 {[%clk 0:00:05.6]} 41. Nd4
{[%clk 0:00:14.5]} 1-0

[Event "*** Titled Tuesday Blitz"]
[Site "Chess.com"]
[Date "2020.03.03"]
[Round "1"]
[White "Sunnika"]
[Black "bascheyaro"]
[Result "0-1"]
[WhiteElo "2398"]
[BlackElo "2759"]
[TimeControl "180+1"]
[EndTime "9:07:42 PST"]
[Termination "bascheyaro won on time"]

1. d4 {[%clk 0:02:59.8]} 1... d5 {[%clk 0:02:54.1]} 2. Bf4 {[%clk 0:02:57.9]}
2... Bf5 {[%clk 0:02:53.7]} 3. e3 {[%clk 0:02:57.7]} 3... e6 {[%clk 0:02:54.2]}
4. Nf3 {[%clk 0:02:55.4]} 4... Nf6 {[%clk 0:02:54.5]} 5. Bd3 {[%clk 0:02:52.5]}
5... Bg6 {[%clk 0:02:54]} 6. Ne5 {[%clk 0:02:52.3]} 6... Nbd7 {[%clk 0:02:53.7]}
7. Nxg6 {[%clk 0:02:52]} 7... hxg6 {[%clk 0:02:53.6]} 8. h3 {[%clk 0:02:49.4]}
8... Bd6 {[%clk 0:02:53.2]} 9. Bxd6 {[%clk 0:02:46.9]} 9... cxd6 {[%clk
0:02:54.1]} 10. c4 {[%clk 0:02:45.4]} 10... dxc4 {[%clk 0:02:53.1]} 11. Bxc4
{[%clk 0:02:45.3]} 11... a6 {[%clk 0:02:52.7]} 12. O-O {[%clk 0:02:44.9]} 12...
Rc8 {[%clk 0:02:50.8]} 13. Be2 {[%clk 0:02:44.6]} 13... Qb6 {[%clk 0:02:44.2]}
14. Nd2 {[%clk 0:02:29.9]} 14... d5 {[%clk 0:02:41.1]} 15. Rb1 {[%clk
0:02:23.2]} 15... O-O {[%clk 0:02:40.3]} 16. Nf3 {[%clk 0:02:19]} 16... Rc6
{[%clk 0:02:38.8]} 17. Bd3 {[%clk 0:02:17]} 17... Rfc8 {[%clk 0:02:38.4]} 18.
Qe2 {[%clk 0:02:16.6]} 18... Qa5 {[%clk 0:02:36.7]} 19. a3 {[%clk 0:02:14.9]}
19... b5 {[%clk 0:02:37]} 20. Qd2 {[%clk 0:02:10.7]} 20... Qc7 {[%clk
0:02:35.4]} 21. g3 {[%clk 0:01:54.5]} 21... Ne4 {[%clk 0:02:34.5]} 22. Qe2
{[%clk 0:01:50.6]} 22... f5 {[%clk 0:02:29.2]} 23. Kg2 {[%clk 0:01:46.8]} 23...
e5 {[%clk 0:02:24.9]} 24. dxe5 {[%clk 0:01:44.4]} 24... Nxe5 {[%clk 0:02:24.9]}
25. Nd4 {[%clk 0:01:39.4]} 25... Rf6 {[%clk 0:02:02.3]} 26. Bc2 {[%clk
0:01:30.4]} 26... Nc6 {[%clk 0:01:59.9]} 27. Bb3 {[%clk 0:01:25.2]} 27... Nxd4
{[%clk 0:01:59.6]} 28. exd4 {[%clk 0:01:19.9]} 28... Qd6 {[%clk 0:01:57.1]} 29.
Rbc1 {[%clk 0:01:18.6]} 29... Rff8 {[%clk 0:01:56.8]} 30. Rxc8 {[%clk
0:01:10.7]} 30... Rxc8 {[%clk 0:01:56.7]} 31. Qe3 {[%clk 0:01:10.2]} 31... Kh7
{[%clk 0:01:55.3]} 32. Rc1 {[%clk 0:01:08.1]} 32... Re8 {[%clk 0:01:53.7]} 33.
Qf4 {[%clk 0:01:03.9]} 33... Qxf4 {[%clk 0:01:53.5]} 34. gxf4 {[%clk 0:01:03.8]}
34... Nf6 {[%clk 0:01:53.5]} 35. Rc6 {[%clk 0:00:58.1]} 35... Re4 {[%clk
0:01:53.1]} 36. Rxa6 {[%clk 0:00:56]} 36... Rxf4 {[%clk 0:01:40.7]} 37. Rb6
{[%clk 0:00:51.8]} 37... Rxd4 {[%clk 0:01:40.7]} 38. Rxb5 {[%clk 0:00:51.5]}
38... Rd2 {[%clk 0:01:40.9]} 39. a4 {[%clk 0:00:29.6]} 39... Rxb2 {[%clk
0:01:35.8]} 40. a5 {[%clk 0:00:29.3]} 40... Rb1 {[%clk 0:01:32.4]} 41. a6 {[%clk
0:00:25.9]} 41... Ra1 {[%clk 0:01:32.5]} 42. Rb6 {[%clk 0:00:19.3]} 42... d4
{[%clk 0:01:32.5]} 43. Rd6 {[%clk 0:00:18.8]} 43... Ne4 {[%clk 0:01:31.8]} 44.
Rxd4 {[%clk 0:00:16.9]} 44... Rxa6 {[%clk 0:01:31.8]} 45. Bc2 {[%clk 0:00:15.9]}
45... Nf6 {[%clk 0:01:31.6]} 46. Rc4 {[%clk 0:00:13]} 46... Rd6 {[%clk
0:01:31.8]} 47. Rc8 {[%clk 0:00:11.2]} 47... Rd2 {[%clk 0:01:31.8]} 48. Rc4
{[%clk 0:00:08.7]} 48... Kh6 {[%clk 0:01:21.1]} 49. Kf3 {[%clk 0:00:08.3]} 49...
Nd5 {[%clk 0:01:18]} 50. Rh4+ {[%clk 0:00:06.8]} 50... Kg5 {[%clk 0:01:17.9]}
51. Rc4 {[%clk 0:00:07.1]} 51... Nf6 {[%clk 0:01:13.5]} 52. Kg2 {[%clk
0:00:06.5]} 52... Rd7 {[%clk 0:01:10.4]} 53. Kf3 {[%clk 0:00:06.1]} 53... Ra7
{[%clk 0:01:10.2]} 54. Kg2 {[%clk 0:00:05.7]} 54... Ra3 {[%clk 0:01:10.3]} 55.
Kh2 {[%clk 0:00:04.7]} 55... Nh5 {[%clk 0:01:09.8]} 56. h4+ {[%clk 0:00:01.8]}
56... Kh6 {[%clk 0:01:10]} 57. Kg2 {[%clk 0:00:01.5]} 57... Kh7 {[%clk
0:01:08.9]} 0-1

[Event "*** Titled Tuesday Blitz"]
[Site "Chess.com"]
[Date "2020.03.03"]
[Round "1"]
[White "MartinMatthiesen"]
[Black "Indianlad"]
[Result "0-1"]
[WhiteElo "2523"]
[BlackElo "2954"]
[TimeControl "180+1"]
[EndTime "9:07:51 PST"]
[Termination "Indianlad won on time"]

1. d4 {[%clk 0:02:58.8]} 1... Nf6 {[%clk 0:03:00.4]} 2. c4 {[%clk 0:02:58.2]}
2... g6 {[%clk 0:03:00.6]} 3. Nc3 {[%clk 0:02:57.7]} 3... Bg7 {[%clk 0:03:01.2]}
4. e4 {[%clk 0:02:57.2]} 4... O-O {[%clk 0:03:01.6]} 5. Nf3 {[%clk 0:02:56.8]}
5... d6 {[%clk 0:03:01.7]} 6. Be2 {[%clk 0:02:56.6]} 6... c5 {[%clk 0:03:01.7]}
7. O-O {[%clk 0:02:54.9]} 7... Bg4 {[%clk 0:03:01.9]} 8. d5 {[%clk 0:02:50.3]}
8... Nfd7 {[%clk 0:03:00.9]} 9. h3 {[%clk 0:02:40.2]} 9... Bxf3 {[%clk
0:03:00.7]} 10. Bxf3 {[%clk 0:02:41.1]} 10... Na6 {[%clk 0:03:01.5]} 11. Bd2
{[%clk 0:02:35.9]} 11... Nc7 {[%clk 0:03:01.3]} 12. Be2 {[%clk 0:02:25.5]} 12...
a6 {[%clk 0:03:01.1]} 13. a4 {[%clk 0:02:24.5]} 13... Rb8 {[%clk 0:03:01.7]} 14.
Qc2 {[%clk 0:02:20.5]} 14... Bd4 {[%clk 0:02:59.1]} 15. Kh1 {[%clk 0:02:19.6]}
15... e5 {[%clk 0:02:58.9]} 16. a5 {[%clk 0:02:01.5]} 16... b6 {[%clk
0:02:47.9]} 17. axb6 {[%clk 0:02:00.3]} 17... Rxb6 {[%clk 0:02:46.7]} 18. b3
{[%clk 0:01:59.1]} 18... Qh4 {[%clk 0:02:40.4]} 19. Be1 {[%clk 0:01:26.9]} 19...
Qe7 {[%clk 0:02:28.1]} 20. Rb1 {[%clk 0:01:15.6]} 20... Rfb8 {[%clk 0:02:27.1]}
21. Na4 {[%clk 0:01:02.1]} 21... R6b7 {[%clk 0:02:27.1]} 22. Bd2 {[%clk
0:00:59.3]} 22... Ne8 {[%clk 0:02:25]} 23. g3 {[%clk 0:00:50.9]} 23... Nb6
{[%clk 0:02:15]} 24. Nxb6 {[%clk 0:00:49.7]} 24... Rxb6 {[%clk 0:02:15.9]} 25.
Kg2 {[%clk 0:00:50.3]} 25... Qb7 {[%clk 0:02:14.4]} 26. Bd1 {[%clk 0:00:49.4]}
26... Qe7 {[%clk 0:02:08.7]} 27. Ba5 {[%clk 0:00:48.6]} 27... R6b7 {[%clk
0:02:09]} 28. Bd2 {[%clk 0:00:48.5]} 28... h5 {[%clk 0:02:07.1]} 29. h4 {[%clk
0:00:46.7]} 29... Nf6 {[%clk 0:02:02.1]} 30. Bg5 {[%clk 0:00:45.9]} 30... Kg7
{[%clk 0:02:02.7]} 31. Be2 {[%clk 0:00:43.2]} 31... Rb6 {[%clk 0:01:54.6]} 32.
Qd3 {[%clk 0:00:37]} 32... Qb7 {[%clk 0:01:53.6]} 33. Bd1 {[%clk 0:00:37.2]}
33... a5 {[%clk 0:01:45.7]} 34. Rc1 {[%clk 0:00:37.4]} 34... Nh7 {[%clk
0:01:27.7]} 35. Bd2 {[%clk 0:00:36.1]} 35... Ra8 {[%clk 0:01:28.2]} 36. Bc2
{[%clk 0:00:30.4]} 36... Nf6 {[%clk 0:01:22.7]} 37. f3 {[%clk 0:00:28.3]} 37...
Nh7 {[%clk 0:01:20.2]} 38. Rce1 {[%clk 0:00:21.1]} 38... Nf6 {[%clk 0:01:11.6]}
39. Rd1 {[%clk 0:00:20.3]} 39... Qa6 {[%clk 0:01:03.2]} 40. Rde1 {[%clk
0:00:19.1]} 40... Rab8 {[%clk 0:01:03.6]} 41. Rd1 {[%clk 0:00:18.8]} 41... Nd7
{[%clk 0:01:00.3]} 42. Rde1 {[%clk 0:00:18.4]} 42... R6b7 {[%clk 0:00:59.7]} 43.
Rd1 {[%clk 0:00:18.1]} 43... a4 {[%clk 0:01:00]} 44. bxa4 {[%clk 0:00:17.9]}
44... Nb6 {[%clk 0:01:00.6]} 45. Bb3 {[%clk 0:00:16.8]} 45... Nxa4 {[%clk
0:01:00.1]} 46. Bxa4 {[%clk 0:00:13.5]} 46... Qxa4 {[%clk 0:01:00.1]} 47. Rc1
{[%clk 0:00:13]} 47... Rb2 {[%clk 0:01:00]} 48. Kh1 {[%clk 0:00:11.8]} 48...
R8b3 {[%clk 0:01:00.2]} 49. Qe2 {[%clk 0:00:10.5]} 49... Qa2 {[%clk 0:01:00.2]}
50. Rfd1 {[%clk 0:00:09.7]} 50... Rc2 {[%clk 0:00:55.5]} 51. Rxc2 {[%clk
0:00:09.2]} 51... Qxc2 {[%clk 0:00:55.6]} 52. Rc1 {[%clk 0:00:09.1]} 52... Qd3
{[%clk 0:00:51.5]} 53. Qd1 {[%clk 0:00:02.8]} 53... Kh7 {[%clk 0:00:48.6]} 0-1

[Event "*** Titled Tuesday Blitz"]
[Site "Chess.com"]
[Date "2020.03.03"]
[Round "1"]
[White "Fighterman91"]
[Black "livestrong04"]
[Result "1-0"]
[WhiteElo "2762"]
[BlackElo "2399"]
[TimeControl "180+1"]
[EndTime "9:07:52 PST"]
[Termination "Fighterman91 won on time"]

1. e4 {[%clk 0:03:00.9]} 1... c5 {[%clk 0:02:57.8]} 2. Nf3 {[%clk 0:02:59.5]}
2... e6 {[%clk 0:02:57.4]} 3. b3 {[%clk 0:02:55]} 3... Nc6 {[%clk 0:02:51]} 4.
Bb2 {[%clk 0:02:54.8]} 4... d6 {[%clk 0:02:51.2]} 5. c4 {[%clk 0:02:53.8]} 5...
e5 {[%clk 0:02:50.9]} 6. Nc3 {[%clk 0:02:52.9]} 6... g6 {[%clk 0:02:50.5]} 7. h4
{[%clk 0:02:51.2]} 7... h5 {[%clk 0:02:49.9]} 8. Be2 {[%clk 0:02:45.6]} 8... Bg7
{[%clk 0:02:49.7]} 9. d3 {[%clk 0:02:45.1]} 9... Nge7 {[%clk 0:02:48.8]} 10. Ng5
{[%clk 0:02:37.4]} 10... Nd4 {[%clk 0:02:45.7]} 11. Nd5 {[%clk 0:02:18.1]} 11...
f6 {[%clk 0:02:35.4]} 12. Nf3 {[%clk 0:02:16.7]} 12... Nxd5 {[%clk 0:02:34.8]}
13. cxd5 {[%clk 0:02:04.5]} 13... Bh6 {[%clk 0:02:30.9]} 14. Nxd4 {[%clk
0:02:03.6]} 14... Qa5+ {[%clk 0:02:10.6]} 15. Kf1 {[%clk 0:02:01.8]} 15... cxd4
{[%clk 0:01:58.7]} 16. Bc1 {[%clk 0:02:01.5]} 16... Bxc1 {[%clk 0:01:48.5]} 17.
Qxc1 {[%clk 0:01:57.2]} 17... Bd7 {[%clk 0:01:43.7]} 18. Qe1 {[%clk 0:01:46.5]}
18... Qa3 {[%clk 0:01:25.9]} 19. Qc1 {[%clk 0:01:46.4]} 19... Qa5 {[%clk
0:01:22.7]} 20. Qe1 {[%clk 0:01:32.2]} 20... Qa3 {[%clk 0:01:22.2]} 21. f4
{[%clk 0:00:37.1]} 21... exf4 {[%clk 0:00:46.3]} 22. Qd2 {[%clk 0:00:34]} 22...
g5 {[%clk 0:00:10.7]} 23. Kf2 {[%clk 0:00:34.5]} 23... O-O-O {[%clk 0:00:09.5]}
24. Rac1+ {[%clk 0:00:16.4]} 24... Kb8 {[%clk 0:00:09.2]} 25. Rc4 {[%clk
0:00:17.3]} 25... Bb5 {[%clk 0:00:05.9]} 26. Qb4 {[%clk 0:00:12.9]} 26... Qxb4
{[%clk 0:00:04.6]} 27. Rxb4 {[%clk 0:00:13.3]} 27... Bd7 {[%clk 0:00:03.3]} 28.
hxg5 {[%clk 0:00:10.8]} 28... Rc8 {[%clk 0:00:04.2]} 29. Rxh5 {[%clk 0:00:07.7]}
29... Rxh5 {[%clk 0:00:02.8]} 30. Bxh5 {[%clk 0:00:08.3]} 30... Rc2+ {[%clk
0:00:03]} 31. Kg1 {[%clk 0:00:04.9]} 31... fxg5 {[%clk 0:00:03.9]} 32. Rxd4
{[%clk 0:00:04.5]} 32... Rxa2 {[%clk 0:00:04]} 33. Rc4 {[%clk 0:00:03.3]} 33...
g4 {[%clk 0:00:04.4]} 34. Rc1 {[%clk 0:00:02.4]} 34... g3 {[%clk 0:00:04.7]} 35.
Bf3 {[%clk 0:00:02]} 35... Rb2 {[%clk 0:00:04.5]} 36. d4 {[%clk 0:00:02.3]}
36... Rxb3 {[%clk 0:00:04.3]} 37. e5 {[%clk 0:00:03]} 37... a5 {[%clk
0:00:03.8]} 38. e6 {[%clk 0:00:02.2]} 38... Be8 {[%clk 0:00:03.5]} 39. Re1
{[%clk 0:00:02.4]} 39... a4 {[%clk 0:00:02.8]} 40. Bd1 {[%clk 0:00:02]} 40...
Rb4 {[%clk 0:00:02]} 41. Bc2 {[%clk 0:00:02.1]} 41... a3 {[%clk 0:00:01.8]} 42.
Ra1 {[%clk 0:00:02.7]} 1-0